fUST/lending_fUST_20260109
["ID","MTS","AMOUNT","RATE_DAILY","PERIOD"]
[401067949,1767900644650,-1000.0,0.00025324,10]
[401067950,1767900644659,-579.0,0.00025324,10]
[401067953,1767900644670,-663.93287602,0.00025332,2]
[401067955,1767900644679,-3207.40519818,0.00025332,2]
[401067957,1767900644689,-648.777651,0.00025342,2]
[401067958,1767900644701,-500.0,0.00025343,2]
[401067960,1767900644710,-900.0,0.00025469,3]
[401067962,1767900644719,-500.0,0.0002548,2]
[401067964,1767900644728,-1000.0,0.000255,2]
[401067966,1767900644737,-500.0,0.00025617,2]
[401067968,1767900644748,-350.0,0.00025753,2]
[401067971,1767900644757,-306.12863019,0.00025754,2]
[401067972,1767900644766,-163.99,0.000258,7]
[401067975,1767900644775,-688.49839244,0.0002588,2]
[401067977,1767900644784,-3326.07919052,0.0002588,2]
[401067978,1767900644793,-167.0,0.0002589,7]
[401067981,1767900644803,-509.0,0.0002589,7]
[401067983,1767900644812,-810.2,0.00025999,2]
[401067985,1767900644821,-20550.55,0.00026,2]
[401067987,1767900644830,-162.93,0.00026,7]
[401067989,1767900644839,-151.0,0.00026,7]
[401067991,1767900644849,-151.0,0.00026,7]
[401067993,1767900644858,-151.0,0.00026,7]
[401067995,1767900644867,-80866.08929819,0.00026,30]
[401067996,1767900644876,-17467.00445744,0.00026,2]
[401067998,1767900644885,-161.0,0.00026,5]
[401068000,1767900644894,-209.0,0.00026082,19]
[401068002,1767900644903,-194.59744594,0.0002616,2]
[401068004,1767900644912,-297.97,0.000262,2]
[401068006,1767900644922,-875.15,0.000262,7]
[401068008,1767900644931,-500.0,0.0002628,7]
[401068010,1767900644941,-450.0,0.00026301,2]
[401068012,1767900644952,-713.97283296,0.00026428,2]
[401068014,1767900644961,-3449.14412057,0.00026428,2]
[401068016,1767900644970,-500.0,0.0002653,7]
[401068018,1767900644979,-200.0,0.0002654,14]
[401068020,1767900644988,-1200.0,0.000266,7]
[401068022,1767900644998,-2000.0,0.00026659,7]
[401068024,1767900645007,-500.0,0.00026678,7]
[401068026,1767900645016,-1502.08,0.000267,14]
[401068028,1767900645025,-1200.0,0.000267,7]
[401068031,1767900645035,-500.0,0.00026727,7]
[401068033,1767900645044,-5000.0,0.00026747,2]
[401068035,1767900645054,-1058.15890492,0.00026829,2]
[401068037,1767900645064,-550.0,0.00026849,2]
[401068039,1767900645073,-500.0,0.00026851,7]
[401068041,1767900645081,-500.0,0.00026859,7]
[401068043,1767900645091,-740.38982778,0.00026976,2]
[401068045,1767900645100,-3576.76245303,0.00026976,2]
[401068047,1767900645109,-4895.1460992,0.0002698,2]
[401068049,1767900645118,-821.53912258,0.00026996,2]
[401068051,1767900645127,-3286.15649032,0.00026996,2]
[401068053,1767900645137,-939.33376792,0.00026996,2]
[401068055,1767900645147,-699.52986375,0.00026996,2]
[401068057,1767900645156,-536.94455887,0.00026996,2]
[401068059,1767900645165,-2147.77823549,0.00026996,2]
[401068061,1767900645175,-4832.50102986,0.00026996,2]
[401068063,1767900645183,-751.26972664,0.00026996,2]
[401068065,1767900645193,-1766.13018199,0.00027,2]
[401068067,1767900645203,-600.0,0.00027,14]
[401068069,1767900645212,-75040.16705244,0.00027,30]
[401068071,1767900645221,-1041.66666667,0.00027,7]
[401068073,1767900645229,-1200.0,0.00027092,7]
[401068075,1767900645239,-180.05041412,0.00027122,2]
[401068077,1767900645248,-1200.0,0.00027133,7]
[401068078,1767900645258,-160.0,0.00027142,3]
[401068081,1767900645267,-233.0,0.00027178,23]
[401068083,1767900645277,-516.0,0.00027185,7]
[401068085,1767900645286,-163.99,0.000272,7]
[401068087,1767900645295,-810.2,0.00027202,2]
[401068089,1767900645304,-1200.0,0.00027214,7]
[401068091,1767900645313,-1167.89585816,0.00027247,2]
[401068093,1767900645322,-2000.0,0.00027326,7]
[401068095,1767900645331,-281.28077948,0.00027341,7]
[401068097,1767900645340,-1963.69,0.00027397,2]
[401068099,1767900645350,-223.85462441,0.00027397,2]
[401068101,1767900645360,-650.0,0.00027397,5]
[401068103,1767900645369,-300.0,0.00027397,2]
[401068105,1767900645379,-300.0,0.00027397,2]
[401068107,1767900645388,-300.0,0.00027397,2]
[401068109,1767900645399,-300.0,0.00027397,2]
[401068111,1767900645408,-300.0,0.00027397,2]
[401068113,1767900645417,-300.0,0.00027397,2]
[401068115,1767900645427,-300.0,0.00027397,2]
[401068117,1767900645436,-300.0,0.00027397,2]
[401068119,1767900645445,-300.0,0.00027397,2]
[401068121,1767900645454,-517.95,0.00027397,15]
[401068123,1767900645463,-300.0,0.00027397,5]
[401068124,1767900645473,-157.24522628,0.00027397,5]
[401068126,1767900645483,-500.0,0.00027397,5]
[401068128,1767900645492,-514.97749556,0.00027397,5]
[401068130,1767900645501,-20550.55,0.000274,2]
[401068132,1767900645510,-162.93,0.000274,7]
[401068134,1767900645519,-224.61,0.00027434,2]
[401068136,1767900645528,-224.62,0.00027434,2]
[401068138,1767900645537,-500.0,0.00027466,7]
[401068140,1767900645547,-167.4,0.000275,7]
[401068142,1767900645556,-45941.24138367,0.000275,2]
[401068144,1767900645566,-767.7842514,0.00027524,2]
[401068146,1767900645575,-7393.85210322,0.00027586,2]
[401068148,1767900645584,-875.15,0.000276,7]
[401068150,1767900645596,-1200.0,0.0002762,7]
[401068152,1767900645605,-3193.0336921,0.00027663,2]
[401068154,1767900645614,-297.97,0.000277,2]
[401068156,1767900645623,-500.0,0.00027735,7]
[401068158,1767900645633,-1000.0,0.00027777,5]
[401068160,1767900645642,-151.0,0.000278,12]
[401068162,1767900645652,-8591.11294197,0.00027802,2]
[401068164,1767900645664,-1000.0,0.00027856,30]
[401068166,1767900645673,-1000.0,0.00027856,30]
[401068168,1767900645683,-1000.0,0.00027856,30]
[401068170,1767900645693,-600.0,0.00027945,5]
[401068172,1767900645702,-1000.0,0.00027945,5]
[401068174,1767900645711,-750.0,0.00027945,5]
[401068176,1767900645721,-250.0,0.00027945,5]
[401068178,1767900645730,-250.0,0.00027945,5]
[401068180,1767900645739,-3842.61329481,0.00027987,2]
[401068182,1767900645749,-2000.0,0.00027993,7]
[401068184,1767900645758,-288484.41449321,0.00027998,2]
[401068215,1767900646044,-561.81015946,0.00022658,12]
[401068217,1767900646053,-561.81015946,0.00023521,14]
[401068219,1767900646063,-561.81015946,0.00024385,15]
[401068221,1767900646072,-151.0,0.00024658,2]
[401068223,1767900646081,-25056.54925063,0.00024784,2]
[401068225,1767900646090,-151.0,0.000249,7]
[401068227,1767900646099,-561.81015946,0.00025248,16]
[401068229,1767900646109,-561.81015946,0.00026112,18]
[401068231,1767900646118,-561.81015946,0.00026975,19]
[401068233,1767900646128,-561.81015946,0.00027838,21]
[401068235,1767900646137,-90786.48602894,0.00027998,2]
[401068238,1767900646150,-18224.59177084,0.00027998,2]
[401068673,1767900780581,373.3131481,0.00030136,120]
[401068674,1767900797108,-300.0,0.0001158,2]
[401068675,1767900808369,100.0,0.0001158,2]
[401068677,1767901080924,272.46,4.995e-05,2]
[401068715,1767901832104,-495.8269563,0.00010907,2]
[401068718,1767901832115,-166.66666666,0.0001148,2]
[401068721,1767901832124,-581.0,0.0001148,2]
[401068724,1767901832134,-334.1476781,0.00011492,2]
[401068727,1767901832143,-300.0,0.00011574,2]
[401068730,1767901832153,-50000.0,0.00011575,2]
[401068733,1767901832162,-500.0,0.00011804,2]
[401068736,1767901832172,-500.0,0.00011804,2]
[401068738,1767901832181,-500.0,0.00011804,2]
[401068741,1767901832190,-500.0,0.00011804,2]
[401068744,1767901832199,-500.0,0.00011804,2]
[401068747,1767901832209,-500.0,0.00011804,2]
[401068750,1767901832219,-500.0,0.00011804,2]
[401068753,1767901832228,-500.0,0.00011804,2]
[401068754,1767901832237,-500.0,0.00011804,2]
[401068756,1767901832247,-500.0,0.00011804,2]
[401068758,1767901832257,-500.0,0.00011804,2]
[401068760,1767901832266,-500.0,0.00011804,2]
[401068761,1767901832275,-500.0,0.00011804,2]
[401068763,1767901832284,-269.39489059,0.00011804,2]
[401068765,1767901832293,-500.0,0.00011804,2]
[401068767,1767901832302,-197.05204004,0.00011804,2]
[401068769,1767901832313,-500.0,0.00011804,2]
[401068771,1767901832322,-500.0,0.00011804,2]
[401068772,1767901832331,-500.0,0.00011804,2]
[401068774,1767901832340,-500.0,0.00011804,2]
[401068776,1767901832349,-500.0,0.00011804,2]
[401068778,1767901832359,-500.0,0.00011804,2]
[401068780,1767901832368,-500.0,0.00011804,2]
[401068781,1767901832377,-500.0,0.00011804,2]
[401068784,1767901832389,-500.0,0.00011804,2]
[401068785,1767901832399,-500.0,0.00011804,2]
[401068787,1767901832408,-500.0,0.00011804,2]
[401068789,1767901832418,-500.0,0.00011804,2]
[401068791,1767901832427,-500.0,0.00011804,2]
[401068793,1767901832437,-500.0,0.00011804,2]
[401068794,1767901832446,-500.0,0.00011804,2]
[401068796,1767901832456,-534.94734408,0.00011804,2]
[401068798,1767901832465,-500.0,0.00011804,2]
[401068800,1767901832474,-500.0,0.00011804,2]
[401068801,1767901832483,-500.0,0.00011804,2]
[401068803,1767901832493,-500.0,0.00011804,2]
[401068805,1767901832502,-500.0,0.00011804,2]
[401068807,1767901832512,-500.0,0.00011804,2]
[401068809,1767901832522,-500.0,0.00011804,2]
[401068811,1767901832532,-500.0,0.00011804,2]
[401068812,1767901832541,-500.0,0.00011804,2]
[401068814,1767901832550,-500.0,0.00011804,2]
[401068816,1767901832560,-500.0,0.00011804,2]
[401068818,1767901832569,-500.0,0.00011804,2]
[401068820,1767901832582,-500.0,0.00011804,2]
[401068822,1767901832591,-500.0,0.00011804,2]
[401068824,1767901832600,-500.0,0.00011804,2]
[401068825,1767901832611,-500.0,0.00011804,2]
[401068827,1767901832621,-500.0,0.00011804,2]
[401068829,1767901832630,-500.0,0.00011804,2]
[401068830,1767901832640,-500.0,0.00011804,2]
[401068832,1767901832649,-500.0,0.00011804,2]
[401068834,1767901832659,-500.0,0.00011804,2]
[401068836,1767901832669,-490.77730627,0.00011804,2]
[401068838,1767901832679,-500.0,0.00011804,2]
[401068840,1767901832689,-500.0,0.00011804,2]
[401068841,1767901832697,-500.0,0.00011804,2]
[401068843,1767901832707,-500.0,0.00011804,2]
[401068845,1767901832717,-500.0,0.00011804,2]
[401068847,1767901832726,-500.0,0.00011804,2]
[401068849,1767901832735,-500.0,0.00011804,2]
[401068850,1767901832744,-300.0,0.00011811,2]
[401068852,1767901832754,-300.0,0.00011811,2]
[401068854,1767901832763,-300.0,0.00011811,2]
[401068856,1767901832772,-300.0,0.00011811,2]
[401068862,1767901832957,-300.0,0.00011811,2]
[401068863,1767901832966,-300.0,0.00011811,2]
[401068864,1767901832975,-300.0,0.00011811,2]
[401068865,1767901832985,-300.0,0.00011811,2]
[401068866,1767901832997,-300.0,0.00011811,2]
[401068867,1767901833007,-300.0,0.00011811,2]
[401068868,1767901833016,-300.0,0.00011811,2]
[401068869,1767901833026,-300.0,0.00011811,2]
[401068870,1767901833035,-300.0,0.00011811,2]
[401068871,1767901833044,-300.0,0.00011811,2]
[401068872,1767901833053,-300.0,0.00011811,2]
[401068873,1767901833063,-600.0,0.00011811,2]
[401068874,1767901833072,-217.2102624,0.0001244,2]
[401068875,1767901833082,-720.0,0.00012993,2]
[401068876,1767901833092,-151.97322479,0.00013273,2]
[401068877,1767901833101,-391.0513895,0.00013273,2]
[401068878,1767901833111,-500.0,0.00013273,2]
[401068879,1767901833121,-499.45845722,0.00013273,2]
[401068880,1767901833130,-500.0,0.00013273,2]
[401068881,1767901833140,-500.0,0.00013273,2]
[401068882,1767901833150,-500.0,0.00013273,2]
[401068883,1767901833159,-500.0,0.00013273,2]
[401068884,1767901833168,-394.29426016,0.00013492,2]
[401068885,1767901833177,-1000.0,0.00013699,2]
[401068886,1767901833186,-500.0,0.00013699,2]
[401068887,1767901833196,-500.0,0.00013699,2]
[401068888,1767901833205,-500.0,0.00013699,2]
[401068889,1767901833215,-316.1319489,0.00013699,2]
[401068890,1767901833224,-500.0,0.00013699,2]
[401068891,1767901833233,-500.0,0.00013699,2]
[401068892,1767901833243,-500.0,0.00013699,2]
[401068893,1767901833252,-500.0,0.00013699,2]
[401068894,1767901833261,-298.48218787,0.00013699,2]
[401068895,1767901833271,-500.0,0.00013699,2]
[401068896,1767901833280,-500.0,0.00013699,2]
[401068897,1767901833289,-500.0,0.00013699,2]
[401068898,1767901833298,-500.0,0.00013699,2]
[401068899,1767901833308,-500.0,0.00013699,2]
[401068900,1767901833317,-500.0,0.00013699,2]
[401068901,1767901833327,-443.55206413,0.00013699,2]
[401068902,1767901833336,-500.0,0.00013699,2]
[401068903,1767901833345,-500.0,0.00013699,2]
[401068904,1767901833354,-1000.0,0.00013821,2]
[401068905,1767901833364,-1000.0,0.00013821,2]
[401068906,1767901833373,-500.0,0.00014247,2]
[401068907,1767901833383,-469.53593685,0.00014247,2]
[401068908,1767901833391,-1000.0,0.00014247,2]
[401068909,1767901833400,-500.0,0.00014247,2]
[401068910,1767901833410,-500.0,0.00014247,2]
[401068911,1767901833419,-250.0,0.00014247,2]
[401068912,1767901833429,-1000.0,0.00014247,2]
[401068913,1767901833438,-1000.0,0.00014247,2]
[401068914,1767901833447,-500.0,0.00014247,2]
[401068915,1767901833456,-500.0,0.00014247,2]
[401068916,1767901833466,-500.0,0.00014247,2]
[401068917,1767901833475,-1000.0,0.00014247,2]
[401068918,1767901833484,-500.0,0.00014247,2]
[401068919,1767901833493,-500.0,0.00014247,2]
[401068920,1767901833503,-500.0,0.00014247,2]
[401068921,1767901833512,-1000.0,0.00014247,2]
[401068922,1767901833522,-864.0,0.00014292,2]
[401068923,1767901833532,-1500.0,0.00014368,2]
[401068924,1767901833541,-500.0,0.00014795,2]
[401068925,1767901833550,-1500.0,0.00014795,2]
[401068926,1767901833559,-988.64589349,0.00014795,2]
[401068927,1767901833568,-640.67728986,0.00014795,2]
[401068928,1767901833578,-190.45781578,0.00014916,2]
[401068929,1767901833587,-362.22331102,0.00015,2]
[401068930,1767901833596,-682.393187,0.00015068,2]
[401068931,1767901833606,-250.0,0.00015169,2]
[401068932,1767901833616,-1000.0,0.000153,2]
[401068933,1767901833625,-514.12213244,0.00015342,2]
[401068934,1767901833635,-424.86,0.0001543,2]
[401068935,1767901833643,-210.86,0.0001543,2]
[401068936,1767901833653,-454.44084221,0.00015492,2]
[401068937,1767901833663,-1000.0,0.00015721,2]
[401068938,1767901833672,-154.86011847,0.00016438,2]
[401068939,1767901833682,-1000.0,0.00017293,2]
[401068940,1767901833691,-244.0,0.00017293,2]
[401068941,1767901833700,-345.0,0.0001739,2]
[401068942,1767901833709,-514.58742427,0.00017492,2]
[401068943,1767901833719,-415.0,0.00017577,2]
[401068944,1767901833728,-525.0,0.00017728,2]
[401068945,1767901833737,-682.393187,0.00018493,2]
[401068946,1767901833746,-303.10001603,0.000189,2]
[401068947,1767901833755,-303.10001603,0.000189,2]
[401068948,1767901833766,-259.0,0.00018932,3]
[401068949,1767901833776,-1000.0,0.00019022,2]
[401068950,1767901833785,-492.0,0.00019022,2]
[401068951,1767901833795,-303.10001603,0.00019089,2]
[401068952,1767901833804,-303.10001603,0.00019089,2]
[401068953,1767901833813,-342.43109207,0.00019278,2]
[401068954,1767901833822,-303.10001603,0.00019278,2]
[401068955,1767901833833,-167.4,0.000193,2]
[401068956,1767901833842,-162.93,0.000193,2]
[401068957,1767901833852,-163.99,0.000193,2]
[401068958,1767901833862,-303.10001603,0.00019467,2]
[401068959,1767901833872,-574.73400633,0.00019492,2]
[401068960,1767901833882,-303.10001603,0.00019656,2]
[401068961,1767901833891,-454.65002405,0.00019845,4]
[401068962,1767901833902,-151.79957514,0.0002,2]
[401068963,1767901833912,-454.65002405,0.00020034,4]
[401068964,1767901833926,-472.6,0.00020062,2]
[401068965,1767901833936,-454.65002405,0.00020223,4]
[401068966,1767901833946,-160.0,0.00020309,2]
[401068967,1767901833956,-1041.66666667,0.0002031,2]
[401068968,1767901833965,-454.65002405,0.00020412,4]
[401068969,1767901833975,-205.0,0.00020575,3]
[401068970,1767901833985,-454.57423307,0.00020601,4]
[401068971,1767901833995,-1000.0,0.00020925,2]
[401068972,1767901834004,-791.0,0.00020925,2]
[401068973,1767901834014,-987.26,0.00021,7]
[401068974,1767901834023,-472.6,0.00021258,2]
[401068976,1767901834032,-634.88058839,0.00021492,2]
[401068978,1767901834041,-151.0,0.000215,3]
[401068980,1767901834051,-151.0,0.00021808,2]
[401068982,1767901834060,-151.0,0.00021808,2]
[401068984,1767901834069,-151.0,0.00021808,2]
[401068986,1767901834078,-151.0,0.00021808,2]
[401068988,1767901834087,-151.0,0.00021808,2]
[401068990,1767901834096,-151.0,0.00021808,2]
[401068992,1767901834106,-151.0,0.00021808,2]
[401068994,1767901834115,-151.0,0.00021808,2]
[401068996,1767901834124,-151.0,0.00021808,2]
[401068998,1767901834133,-151.0,0.00021808,2]
[401069000,1767901834142,-151.0,0.00021808,2]
[401069002,1767901834151,-151.0,0.00021808,2]
[401069004,1767901834160,-151.0,0.00021808,2]
[401069006,1767901834169,-151.0,0.00021808,2]
[401069008,1767901834179,-151.0,0.00021808,2]
[401069010,1767901834187,-151.0,0.00021808,2]
[401069012,1767901834197,-151.0,0.00021808,2]
[401069014,1767901834206,-151.0,0.00021808,2]
[401069015,1767901834215,-151.0,0.00021808,2]
[401069016,1767901834224,-151.0,0.00021808,2]
[401069017,1767901834234,-682.393187,0.00021918,2]
[401069018,1767901834243,-207.0,0.00022219,6]
[401069019,1767901834252,-5000.0,0.00022412,2]
[401069020,1767901834262,-472.6,0.00022454,2]
[401069021,1767901834272,-700.12,0.000225,7]
[401069022,1767901834281,-151.0,0.00023,6]
[401069023,1767901834290,-1000.0,0.00023017,10]
[401069024,1767901834300,-1000.0,0.00023017,10]
[401069025,1767901834311,-695.02717045,0.00023492,2]
[401069027,1767901834320,-472.6,0.00023651,2]
[401069029,1767901834329,-210.0,0.00023863,11]
[401069031,1767901834339,-5000.0,0.00024269,2]
[401069033,1767901834349,-151.0,0.000245,8]
[401069035,1767901834358,-500.0,0.00024521,2]
[401069038,1767901834367,-153.05659276,0.00024521,2]
[401069039,1767901834377,-500.0,0.00024658,2]
[401069041,1767901834387,-500.0,0.00024658,2]
[401069043,1767901834396,-162.93,0.000247,7]
[401069045,1767901834405,-163.99,0.000247,7]
[401069047,1767901834414,-450.0,0.00024795,2]
[401069049,1767901834424,-500.0,0.00024795,2]
[401069051,1767901834435,-472.6,0.00024847,2]
[401069053,1767901834444,-614.7,0.000249,2]
[401069055,1767901834456,-1351.87,0.000249,14]
[401069057,1767901834465,-64760.7269522,0.000249,2]
[401069059,1767901834474,-500.0,0.00024932,2]
[401069061,1767901834484,-184.0,0.00025,7]
[401069063,1767901834493,-167.0,0.00025,7]
[401069065,1767901834502,-200.0,0.00025069,2]
[401069067,1767901834512,-500.0,0.00025069,2]
[401069069,1767901834522,-393.865,0.0002511,9]
[401069071,1767901834531,-250.0,0.00025205,2]
[401069073,1767901834541,-250.0,0.00025206,2]
[401069075,1767901834550,-500.0,0.00025206,2]
[401069077,1767901834560,-700.12,0.000253,7]
[401069079,1767901834570,-1000.0,0.00025319,10]
[401069081,1767901834580,-1000.0,0.00025319,10]
[401069083,1767901834590,-579.0,0.00025319,10]
[401069085,1767901834599,-682.393187,0.00025342,2]
[401069087,1767901834610,-500.0,0.00025343,2]
[401069089,1767901834619,-306.12863019,0.0002548,2]
[401069091,1767901834629,-755.1737525,0.00025492,2]
[401069093,1767901834639,-212.0,0.00025507,17]
[401069095,1767901834648,-350.0,0.00025753,2]
[401069097,1767901834657,-167.0,0.0002589,7]
[401069098,1767901834667,-151.0,0.00026,19]
[401069099,1767901834676,-472.6,0.00026043,2]
[401069100,1767901834685,-2876.2072303,0.000261,7]
[401069101,1767901834694,-5000.0,0.00026127,2]
[401069103,1767901834704,-125.46161782,0.000262,14]
[401069227,1767901838071,-455.05033607,0.0001181,2]
[401069228,1767901838081,-978.81713905,0.0001181,2]
[401069229,1767901838091,-978.81713905,0.0001181,2]
[401069230,1767901838101,-978.81713905,0.0001181,2]
[401069231,1767901838110,-695.92700815,0.0001181,2]
[401069232,1767901838122,-282.8901309,0.0001181,2]
[401069233,1767901838131,-978.81713905,0.0001181,2]
[401069234,1767901838140,-978.81713905,0.0001181,2]
[401069235,1767901838150,-978.81713905,0.0001181,2]
[401069236,1767901838159,-978.81713905,0.0001181,2]
[401069237,1767901838169,-978.81713905,0.0001181,2]
[401069238,1767901838178,-978.81713905,0.0001181,2]
[401069239,1767901838188,-978.81713905,0.0001181,2]
[401069240,1767901838196,-978.81713905,0.0001181,2]
[401069241,1767901838206,-978.81713905,0.0001181,2]
[401069242,1767901838215,-978.81713905,0.0001181,2]
[401069243,1767901838224,-978.81713905,0.0001181,2]
[401069244,1767901838233,-978.81713905,0.0001181,2]
[401069245,1767901838243,-978.81713905,0.0001181,2]
[401069246,1767901838252,-978.81713905,0.0001181,2]
[401069247,1767901838261,-978.81713905,0.0001181,2]
[401069248,1767901838271,-978.81713905,0.0001181,2]
[401069249,1767901838280,-978.81713905,0.0001181,2]
[401069250,1767901838290,-978.81713905,0.0001181,2]
[401069251,1767901838300,-978.81713905,0.0001181,2]
[401069252,1767901838310,-978.81713905,0.0001181,2]
[401069253,1767901838330,-978.81713905,0.0001181,2]
[401069254,1767901838340,-1226.40838218,0.000262,14]
[401069255,1767901838350,-450.0,0.00026301,2]
[401069256,1767901838359,-500.0,0.00026385,7]
[401069257,1767901838369,-1200.0,0.00026714,7]
[401069258,1767901838379,-500.0,0.00026787,7]
[401069259,1767901838388,-614.7,0.000268,2]
[401069260,1767901838398,-550.0,0.00026849,2]
[401069261,1767901838407,-32380.3634761,0.00026969,2]
[401069262,1767901838417,-3753.57773659,0.00026976,2]
[401069263,1767901838426,-655.85017517,0.00026976,2]
[401069264,1767901838435,-4228.40298407,0.00026976,2]
[401069265,1767901838445,-2623.40070067,0.00026979,2]
[401069266,1767901838454,-2795.32133556,0.00026979,2]
[401069267,1767901838463,-3005.07890655,0.00026979,2]
[401069268,1767901838473,-1168.63176642,0.00026979,2]
[401069269,1767901838483,-4674.52706568,0.00026979,2]
[401069270,1767901838492,-1220.02514655,0.00026979,2]
[401069271,1767901838502,-509.0,0.00027,7]
[401069272,1767901838511,-1200.0,0.00027003,7]
[401069273,1767901838522,-1200.0,0.00027024,7]
[401069274,1767901838532,-700.12,0.000271,7]
[401069275,1767901838542,-1041.66666667,0.000271,7]
[401069276,1767901838552,-180.03960871,0.00027122,2]
[401069277,1767901838561,-900.8992001,0.00027145,7]
[401069278,1767901838571,-158.0,0.00027151,23]
[401069280,1767901838581,-1200.0,0.00027185,7]
[401069282,1767901838590,-472.6,0.00027239,2]
[401069284,1767901838599,-500.0,0.00027315,7]
[401069286,1767901838609,-218.96,0.00027324,2]
[401069288,1767901838618,-230.27,0.00027324,2]
[401069290,1767901838627,-17904.23,0.00027387,10]
[401069292,1767901838637,-1963.69,0.00027397,2]
[401069294,1767901838646,-223.85462441,0.00027397,2]
[401069296,1767901838656,-650.0,0.00027397,5]
[401069298,1767901838665,-300.0,0.00027397,2]
[401069300,1767901838675,-300.0,0.00027397,2]
[401069302,1767901838685,-300.0,0.00027397,2]
[401069304,1767901838694,-300.0,0.00027397,2]
[401069306,1767901838703,-300.0,0.00027397,2]
[401069308,1767901838712,-300.0,0.00027397,2]
[401069310,1767901838721,-300.0,0.00027397,2]
[401069312,1767901838730,-300.0,0.00027397,2]
[401069314,1767901838739,-300.0,0.00027397,2]
[401069316,1767901838748,-500.0,0.00027397,5]
[401069318,1767901838758,-300.0,0.00027397,5]
[401069320,1767901838767,-157.24522628,0.00027397,5]
[401069322,1767901838779,-517.95,0.00027397,15]
[401069324,1767901838788,-514.97749556,0.00027397,5]
[401069326,1767901838801,-1351.87,0.000274,14]
[401069328,1767901838810,-1200.0,0.00027429,7]
[401069330,1767901838823,-5902.6515765,0.00027443,2]
[401069332,1767901838833,-1200.0,0.00027477,7]
[401069334,1767901838843,-815.32033456,0.00027492,2]
[401069336,1767901838852,-151.0,0.000275,11]
[401069338,1767901838863,-1200.0,0.00027566,7]
[401069340,1767901838872,-1200.0,0.00027571,7]
[401069342,1767901838882,-281.28077948,0.00027605,7]
[401069344,1767901838892,-509.0,0.00027671,14]
[401069346,1767901838902,-1200.0,0.00027674,7]
[401069348,1767901838912,-4880.10058621,0.00027695,2]
[401069350,1767901838925,-1596.516846,0.0002773,2]
[401069352,1767901838935,-151.0,0.000278,10]
[401069354,1767901838944,-1000.0,0.00027851,30]
[401069356,1767901838954,-1000.0,0.00027851,30]
[401069358,1767901838964,-1000.0,0.00027851,30]
[401069360,1767901838975,-614.7,0.000279,2]
[401069362,1767901838985,-1537.04531794,0.000279,2]
[401069364,1767901838994,-500.0,0.00027904,7]
[401069366,1767901839004,-32380.3634761,0.00027934,2]
[401069368,1767901839011,-1500.0,0.00027944,5]
[401069370,1767901839021,-1500.0,0.00027944,5]
[401069372,1767901839029,-1271.89158797,0.00027944,5]
[401069374,1767901839040,-250.0,0.00027944,5]
[401069376,1767901839048,-514.84070869,0.00027944,5]
[401069378,1767901839058,-250.0,0.00027944,5]
[401069380,1767901839067,-533.88981491,0.00027944,5]
[401069382,1767901839078,-250.0,0.00027944,5]
[401069384,1767901839088,-553.64373807,0.00027944,5]
[401069386,1767901839097,-574.12855637,0.00027944,5]
[401069388,1767901839107,-595.37131296,0.00027944,5]
[401069390,1767901839116,-2487.15318209,0.00027944,5]
[401069392,1767901839125,-617.40005154,0.00027944,5]